bitfinex/quotes_BTCUSD_20251114
["timestamp","ask_amount","ask_price","bid_price","bid_amount"]
[1763141530773,0.01538,96572.0,96570.0,0.0004]
[1763141532815,0.01538,96572.0,96550.0,0.2]
[1763141532816,0.02666,96572.0,96567.0,0.05]
[1763141533016,0.03035087,96610.0,96550.0,0.4]
[1763141533017,0.12424,96617.0,96584.0,0.05]
[1763141533132,0.01128,96624.0,96607.0,0.36567808]
[1763141533133,0.06744,96616.0,96607.0,0.36567808]
[1763141533337,0.06744,96616.0,96615.0,0.05]
[1763141533807,0.08282,96616.0,96615.0,0.05]
[1763141534008,0.08282,96616.0,96590.0,0.36567808]
[1763141534181,0.04953589,96615.0,96605.0,0.05]
[1763141534383,0.10479654,96613.0,96605.0,0.05]
[1763141534608,0.10479654,96613.0,96612.0,0.05]
[1763141534971,0.10479654,96613.0,96600.0,0.36567808]
[1763141534972,0.14383654,96613.0,96611.0,0.05]
[1763141535169,0.02366,96612.0,96611.0,0.05]
[1763141535365,0.01538,96612.0,96611.0,0.05]
[1763141535974,0.01538,96612.0,96607.0,0.05]
[1763141536172,0.10479654,96608.0,96600.0,0.36567808]
[1763141536376,0.06744,96607.0,96602.0,0.05]
[1763141536598,0.0258783,96606.0,96581.0,0.00887]
[1763141536800,0.01538,96599.0,96596.0,0.05]
[1763141537006,0.0495383,96606.0,96595.0,0.05]
[1763141537007,0.01538,96597.0,96595.0,0.05]
[1763141537229,0.06744,96596.0,96595.0,0.05]
[1763141537446,0.08282,96596.0,96595.0,0.05]
[1763141538383,0.08282,96596.0,96593.0,0.05]
[1763141538562,0.06744,96596.0,96593.0,0.05]
[1763141538790,0.01538,96594.0,96593.0,0.05]
[1763141539009,0.01538,96594.0,96581.0,0.00887]
[1763141539010,0.01538,96594.0,96591.0,0.05]
[1763141539497,0.01479811,96594.0,96591.0,0.05]
[1763141539730,0.02588179,96593.0,96588.0,0.05]
[1763141539916,0.06744,96596.0,96595.0,0.05]
[1763141540355,0.08282,96596.0,96586.0,0.61330388]
[1763141540542,0.21831016,96605.0,96586.0,0.61330388]
[1763141540543,0.01128,96605.0,96591.0,0.05]
[1763141540693,0.01128,96605.0,96604.0,0.05]
[1763141540904,0.07868,96605.0,96604.0,0.05]
[1763141541107,0.09406,96605.0,96604.0,0.05]
[1763141541306,0.02666,96605.0,96604.0,0.05]
[1763141541655,0.0941,96605.0,96604.0,0.05]
[1763141541861,0.0939957,96605.0,96602.0,0.05]
[1763141542060,0.01538,96603.0,96602.0,0.05]
[1763141544475,0.04125911,96603.0,96588.0,0.05]
[1763141544681,0.01538,96594.0,96590.0,0.61330388]
[1763141544881,0.04087137,96594.0,96593.0,0.05]
[1763141545197,0.08278,96594.0,96593.0,0.05]
[1763141545827,0.0674,96594.0,96593.0,0.05]
[1763141547404,0.0111757,96605.0,96593.0,0.05]
[1763141547601,0.0111757,96605.0,96590.0,0.61330388]
[1763141547602,0.0674,96604.0,96603.0,0.05]
[1763141547844,0.09106,96604.0,96590.0,0.61330388]
[1763141548046,0.02366,96603.0,96599.0,0.05]
[1763141548243,0.01538,96600.0,96599.0,0.05]
[1763141548626,0.01538,96600.0,96597.0,0.05]
[1763141549042,0.01538,96598.0,96597.0,0.05]
[1763141549455,0.01538,96598.0,96596.0,0.05]
[1763141549656,0.02366,96599.0,96596.0,0.05]
[1763141549859,0.01538,96597.0,96596.0,0.05]
[1763141550492,0.01538,96597.0,96590.0,0.61330388]
[1763141550691,0.0674,96596.0,96592.0,0.05]
[1763141551086,0.01603,96593.0,96592.0,0.05]
[1763141551597,0.01603,96593.0,96562.0,0.00956]
[1763141551760,0.0674,96596.0,96569.0,0.05]
[1763141551761,0.0113,96571.0,96569.0,0.05]
[1763141551959,0.08343,96570.0,96569.0,0.05]
[1763141552567,0.0674,96570.0,96569.0,0.05]
[1763141552927,0.0113,96592.0,96569.0,0.05]
[1763141553125,0.11609654,96580.0,96579.0,0.05]
[1763141553351,0.18349654,96580.0,96579.0,0.05]
[1763141553522,0.19952654,96580.0,96579.0,0.05]
[1763141554072,0.09473,96580.0,96579.0,0.05]
[1763141554901,0.0113,96580.0,96579.0,0.05]
[1763141555021,0.0113,96592.0,96590.0,0.05]
[1763141555227,0.39044,96591.0,96590.0,0.05]
[1763141555446,0.40647,96591.0,96590.0,0.05]
[1763141555646,0.40647,96591.0,96587.0,0.05]
[1763141555959,0.02499,96590.0,96587.0,0.05]
[1763141556169,0.01603,96588.0,96587.0,0.05]
[1763141557337,0.01603,96588.0,96580.0,0.61330388]
[1763141557571,0.01603,96581.0,96580.0,0.05]
[1763141557770,0.08347,96581.0,96575.0,0.05]
[1763141558022,0.08347,96581.0,96580.0,0.05]
[1763141560515,0.06744,96581.0,96580.0,0.05]
[1763141560954,0.08347,96581.0,96580.0,0.05]
[1763141561602,0.08347,96581.0,96570.0,0.61330388]
[1763141561801,0.02499,96580.0,96579.0,0.05]
[1763141562225,0.04102,96580.0,96579.0,0.05]
[1763141562461,0.04102,96580.0,96575.0,0.05]
[1763141562676,0.02499,96579.0,96575.0,0.05]
[1763141562916,0.02499,96579.0,96570.0,0.61330388]
[1763141562919,0.01603,96576.0,96570.0,0.001]
[1763141563131,0.01603,96571.0,96570.0,0.001]
[1763141563350,0.01603,96571.0,96562.0,0.00024234]
[1763141563351,0.20710819,96568.0,96562.0,0.00024234]
[1763141563569,0.45512654,96563.0,96562.0,0.00024234]
[1763141563794,0.35033,96563.0,96562.0,0.00024234]
[1763141563997,0.41777,96563.0,96562.0,0.00024234]
[1763141565052,0.02733,96563.0,96562.0,0.00024234]
[1763141565332,0.0113,96570.0,96569.0,0.05]
[1763141565533,0.09477,96570.0,96569.0,0.05]
[1763141566006,0.09477,96570.0,96568.0,0.05]
[1763141566333,0.01603,96569.0,96568.0,0.05]
[1763141566809,0.06744,96570.0,96569.0,0.05]
[1763141566954,0.12978654,96578.0,96569.0,0.05]
[1763141567156,0.0113,96585.0,96578.0,0.05]
[1763141567473,0.0113,96585.0,96584.0,0.05]
[1763141567669,0.09477,96585.0,96584.0,0.05]
[1763141568665,0.09477,96585.0,96568.0,0.61330388]
[1763141568870,0.10982662,96584.0,96578.0,0.05]
[1763141569073,0.02588447,96583.0,96578.0,0.05]
[1763141569399,0.02588447,96583.0,96582.0,0.05]
[1763141569606,0.02588447,96583.0,96568.0,0.61330388]
[1763141569788,0.0113,96569.0,96568.0,0.66330388]
[1763141569994,0.07874,96569.0,96568.0,0.05]
[1763141570207,0.06744,96569.0,96568.0,0.05]
[1763141571928,0.06711562,96569.0,96568.0,0.05]
[1763141575428,0.06711562,96569.0,96563.0,0.323]
[1763141575629,0.07841562,96569.0,96568.0,0.05]
[1763141576146,0.06711562,96569.0,96568.0,0.05]
[1763141579347,0.08314562,96569.0,96568.0,0.05]
[1763141579846,0.08314562,96569.0,96562.0,0.00024234]
[1763141580056,0.12082654,96563.0,96562.0,0.00024234]
[1763141580417,0.01582,96563.0,96562.0,0.05024234]
[1763141580629,0.08326,96563.0,96562.0,0.05024234]
[1763141581032,0.08326,96563.0,96562.0,0.00024234]
[1763141581259,0.06744,96563.0,96562.0,0.05024234]
[1763141581457,0.0113,96570.0,96562.0,0.00024234]
[1763141581662,0.0113,96570.0,96569.0,0.05]
[1763141581877,0.07874,96570.0,96569.0,0.05]
[1763141582463,0.0113,96570.0,96569.0,0.05]
[1763141582663,0.09456,96570.0,96562.0,0.00024234]
[1763141582945,0.09456,96570.0,96568.0,0.05]
[1763141583217,0.01582,96569.0,96568.0,0.05]
[1763141583816,0.02761347,96603.0,96562.0,0.00024234]
[1763141584011,0.07363594,96624.0,96562.0,0.00024234]
[1763141584012,0.01155,96601.0,96599.0,0.05]
[1763141584210,0.10479654,96623.0,96604.0,0.05]
[1763141584211,0.01155,96609.0,96604.0,0.05]
[1763141584391,0.0786157,96605.0,96604.0,0.05]
[1763141584570,0.0786157,96605.0,96584.0,0.00956]
[1763141584571,0.0944357,96605.0,96589.0,0.00956]
[1763141584788,0.05000884,96604.0,96596.0,0.05]
[1763141585097,0.01582,96597.0,96596.0,0.05]
[1763141586239,0.0111757,96605.0,96596.0,0.05]
[1763141586441,0.06744,96604.0,96595.0,0.61330388]
[1763141586640,0.06744,96604.0,96603.0,0.05]
[1763141587089,0.08326,96604.0,96603.0,0.05]
[1763141587296,0.06744,96604.0,96603.0,0.05]
[1763141587660,0.0111757,96605.0,96604.0,0.05]
[1763141587858,0.0786157,96605.0,96604.0,0.05]
[1763141588056,0.0944357,96605.0,96604.0,0.05]
[1763141590394,0.0786157,96605.0,96604.0,0.05]
[1763141592739,0.06744,96605.0,96596.0,0.323]
[1763141592950,0.01145,96597.0,96596.0,0.323]
[1763141593130,0.01145,96597.0,96596.0,0.373]
[1763141593589,0.01145,96597.0,96596.0,0.05]
[1763141594204,0.06744,96605.0,96604.0,0.05]
[1763141594757,0.08305,96605.0,96604.0,0.05]
[1763141595835,0.01145,96618.0,96616.0,0.05]
[1763141596048,0.0674,96617.0,96616.0,0.05]
[1763141596245,0.08301,96617.0,96613.0,0.05]
[1763141596470,0.02587563,96616.0,96613.0,0.05]
[1763141596645,0.01561,96614.0,96613.0,0.05]
[1763141597497,0.02587563,96616.0,96613.0,0.05]
[1763141597652,0.10479654,96646.0,96634.0,0.05]
[1763141597856,0.0674,96639.0,96634.0,0.05]
[1763141598045,0.0674,96639.0,96613.0,0.00956]
[1763141598046,0.01561,96635.0,96613.0,0.00956]
[1763141598244,0.0674,96639.0,96623.0,0.05]
[1763141598245,0.10479654,96625.0,96623.0,0.05]
[1763141598421,0.0674,96624.0,96623.0,0.05]
[1763141598622,0.10888348,96624.0,96623.0,0.05]
[1763141599282,0.08301,96624.0,96623.0,0.05]
[1763141601565,0.01155,96640.0,96633.0,0.05]
[1763141601934,0.11704947,96639.0,96633.0,0.05]
[1763141602067,0.01561,96634.0,96633.0,0.05]
[1763141602662,0.01561,96634.0,96624.0,0.36567437]
[1763141602866,0.01561,96631.0,96629.0,0.05]
[1763141603066,0.0674,96630.0,96629.0,0.05]
[1763141603213,0.08301,96630.0,96629.0,0.05]
[1763141603570,0.08301,96630.0,96606.0,0.00956]
[1763141603571,0.10888188,96630.0,96605.0,0.00956]
[1763141603770,0.12040654,96622.0,96615.0,0.05]
[1763141603957,0.09327429,96621.0,96615.0,0.05]
[1763141604157,0.02706,96616.0,96615.0,0.05]
[1763141606030,0.02706,96616.0,96602.0,0.05]
[1763141606031,0.20701066,96614.0,96602.0,0.05]
[1763141606264,0.02706,96603.0,96595.0,0.05]
[1763141606474,0.01561,96591.0,96580.0,0.36567437]
[1763141606677,0.01561,96591.0,96563.0,0.00956]
[1763141606678,0.01145,96586.0,96563.0,0.00956]
[1763141606848,0.02378,96585.0,96581.0,0.05]
[1763141607004,0.02706,96582.0,96578.0,0.05]
[1763141607190,0.01561,96579.0,96578.0,0.05]
[1763141609408,0.01561,96579.0,96569.0,0.36567437]
[1763141609409,0.10479654,96607.0,96587.0,0.00956]
[1763141609611,0.10479654,96592.0,96590.0,0.36567437]
[1763141609817,0.0674,96591.0,96590.0,0.05]
[1763141610013,0.07885,96591.0,96590.0,0.05]
[1763141610649,0.01145,96591.0,96590.0,0.05]
[1763141610852,0.07885,96591.0,96590.0,0.05]
[1763141611056,0.0674,96591.0,96590.0,0.05]
[1763141611298,0.11020041,96628.0,96590.0,0.2]
[1763141611514,0.10479654,96613.0,96606.0,0.36567437]
[1763141611840,0.10479654,96613.0,96612.0,0.05]
[1763141612141,0.10479654,96613.0,96591.0,0.33256]
[1763141612142,0.10479654,96613.0,96600.0,0.36567437]
[1763141612334,0.0258767,96612.0,96611.0,0.05]
[1763141612536,0.0491267,96612.0,96611.0,0.05]
[1763141612693,0.0397,96612.0,96611.0,0.05]
[1763141613102,0.01204,96623.0,96600.0,0.73134874]
[1763141613287,0.0674,96622.0,96613.0,0.36567437]
[1763141613493,0.0674,96622.0,96621.0,0.05]
[1763141613896,0.08385,96622.0,96621.0,0.05]
[1763141614324,0.01645,96622.0,96621.0,0.05]
[1763141614551,0.08385,96622.0,96621.0,0.05]
[1763141615504,0.08385,96622.0,96594.0,0.323]
[1763141615505,0.10972402,96622.0,96600.0,0.36567437]
[1763141615652,0.01645,96611.0,96608.0,0.05]
[1763141615853,0.0674,96610.0,96605.0,0.05]
[1763141616038,0.0258775,96609.0,96605.0,0.05]
[1763141616246,0.02849,96606.0,96605.0,0.05]
[1763141616518,0.01204,96606.0,96605.0,0.05]
[1763141616861,0.02849,96606.0,96605.0,0.05]
[1763141617457,0.01204,96606.0,96605.0,0.05]
[1763141620344,0.00942259,96609.0,96605.0,0.05]
[1763141620531,0.02587402,96622.0,96614.0,0.05]
[1763141620693,0.09050337,96621.0,96614.0,0.05]
[1763141621660,0.02325,96622.0,96614.0,0.05]
[1763141621810,0.01645,96615.0,96614.0,0.05]
[1763141622035,0.08385,96615.0,96614.0,0.05]
[1763141623183,0.08385,96615.0,96600.0,0.36567437]
[1763141623354,0.02108925,96614.0,96611.0,0.05]
[1763141623551,0.01645,96601.0,96596.0,0.00789888]
[1763141623706,0.13328654,96597.0,96596.0,0.00789888]
[1763141626015,0.13428654,96597.0,96596.0,0.00789888]
[1763141626871,0.10479654,96573.0,96572.0,0.05]
[1763141627093,0.09589,96573.0,96572.0,0.05]
[1763141627803,0.02849,96573.0,96572.0,0.05]
[1763141628016,0.09589,96573.0,96572.0,0.05]
[1763141628226,0.09589,96573.0,96572.0,0.051]
[1763141628661,0.09589,96573.0,96572.0,0.05]
[1763141629063,0.07944,96573.0,96572.0,0.05]
[1763141629265,0.0674,96573.0,96563.0,0.36567437]
[1763141629643,0.0674,96572.0,96563.0,0.37523437]
[1763141629859,0.01204,96586.0,96585.0,0.05]
[1763141630077,0.0674,96586.0,96585.0,0.05]
[1763141630705,0.01204,96591.0,96590.0,0.05]
[1763141630919,0.07944,96591.0,96590.0,0.05]
[1763141631121,0.11683654,96597.0,96576.0,0.36567437]
[1763141631331,0.0674,96591.0,96590.0,0.05]
[1763141631541,0.11683654,96597.0,96596.0,0.05]
[1763141631741,0.01204,96597.0,96596.0,0.05]
[1763141631948,0.0674,96597.0,96596.0,0.05]
[1763141632159,0.01204,96605.0,96600.0,0.05]
[1763141632378,0.02325,96618.0,96607.0,0.05]
[1763141632791,0.02325,96619.0,96595.0,0.36567437]
[1763141633007,0.10479654,96613.0,96612.0,0.05]
[1763141633217,0.41627509,96618.0,96612.0,0.05]
[1763141633428,0.41627509,96618.0,96617.0,0.05]
[1763141633643,0.0674,96618.0,96617.0,0.05]
[1763141633865,0.01204,96623.0,96617.0,0.05]
[1763141634073,0.0674,96622.0,96621.0,0.05]
[1763141634526,0.08385,96622.0,96621.0,0.05]
[1763141635418,0.10972402,96622.0,96621.0,0.05]
[1763141635627,0.10972402,96622.0,96618.0,0.05]
[1763141635840,0.02587429,96621.0,96618.0,0.05]
[1763141636041,0.01645,96619.0,96618.0,0.05]
[1763141639291,0.01645,96619.0,96611.0,0.05]
[1763141639518,0.01645,96611.0,96608.0,0.05]
[1763141639738,0.0674,96610.0,96608.0,0.05]
[1763141639962,0.01645,96609.0,96608.0,0.05]
[1763141640388,0.0674,96610.0,96608.0,0.05]
[1763141640614,0.0674,96610.0,96609.0,0.05]
[1763141640833,0.01337669,96622.0,96609.0,0.05]
[1763141641054,0.0674,96621.0,96610.0,0.36567437]
[1763141641270,0.0674,96621.0,96620.0,0.05]
[1763141641481,0.0674,96621.0,96600.0,0.36567437]
[1763141641699,0.0674,96621.0,96616.0,0.05]
[1763141642169,0.0674,96621.0,96582.0,0.00956]
[1763141642170,0.01633,96617.0,96582.0,0.00956]
[1763141642376,0.01633,96617.0,96570.0,0.36567437]
[1763141642377,0.01633,96583.0,96570.0,0.36567437]
[1763141642657,0.0674,96582.0,96580.0,0.05]
[1763141642871,0.01131,96600.0,96580.0,0.05]
[1763141642872,0.0674,96581.0,96580.0,0.05]
[1763141643081,0.01131,96600.0,96599.0,0.05]
[1763141643255,0.09504,96600.0,96599.0,0.05]
[1763141643457,0.01131,96615.0,96590.0,0.36567437]
[1763141643600,0.10479654,96609.0,96608.0,0.05]
[1763141643798,0.10479654,96609.0,96590.0,0.36567437]
[1763141644006,0.02764,96601.0,96598.0,0.04980838]
[1763141644221,0.0674,96600.0,96598.0,0.04980838]
[1763141644432,0.01633,96599.0,96595.0,0.04980838]
[1763141645118,0.0674,96600.0,96599.0,0.04980838]
[1763141645540,0.08373,96600.0,96590.0,0.36567437]
[1763141645764,0.08373,96600.0,96598.0,0.04980838]
[1763141646184,0.01633,96599.0,96598.0,0.04980838]
[1763141646411,0.0674,96600.0,96598.0,0.04980838]
[1763141647059,0.01633,96599.0,96598.0,0.04980838]
[1763141647899,0.02261,96614.0,96590.0,0.36567437]
[1763141648122,0.01131,96615.0,96600.0,0.36567437]
[1763141648344,0.01131,96615.0,96614.0,0.04980838]
[1763141648558,0.07871,96615.0,96614.0,0.04980838]
[1763141649417,0.0674,96615.0,96614.0,0.04980838]
[1763141650567,0.08339,96615.0,96614.0,0.04980838]
[1763141650992,0.0674,96615.0,96614.0,0.04980838]
[1763141651209,0.08339,96615.0,96614.0,0.04980838]
[1763141652508,0.08339,96615.0,96611.0,0.04980838]
[1763141652720,0.10479654,96613.0,96611.0,0.04980838]
[1763141653024,0.0418667,96612.0,96611.0,0.04980838]
[1763141653973,0.03013401,96612.0,96611.0,0.04980838]
[1763141654270,0.0418667,96612.0,96611.0,0.04980838]
[1763141655250,0.01599,96612.0,96611.0,0.04980838]
[1763141655960,0.01599,96612.0,96590.0,0.20956]
[1763141655961,0.0418667,96612.0,96602.0,0.04980838]
[1763141656170,0.10479654,96604.0,96602.0,0.04980838]
[1763141656391,0.08339,96603.0,96602.0,0.04980838]
[1763141657728,0.08339,96603.0,96591.0,0.04980838]
[1763141658006,0.01035196,96600.0,96560.0,0.2]
[1763141658204,0.01164,96572.0,96571.0,0.04980838]
[1763141658468,0.07904,96572.0,96571.0,0.04980838]
[1763141659053,0.0674,96572.0,96571.0,0.04980838]
[1763141659422,0.01164,96583.0,96582.0,0.04980838]
[1763141659620,0.07904,96583.0,96582.0,0.04980838]
[1763141659913,0.09503,96583.0,96582.0,0.04980838]
[1763141660280,0.02763,96583.0,96582.0,0.04980838]
[1763141660500,0.09503,96583.0,96582.0,0.04980838]
[1763141661615,0.07904,96583.0,96582.0,0.04980838]
[1763141661808,0.01164,96583.0,96582.0,0.04980838]
[1763141661993,0.07904,96583.0,96582.0,0.04980838]
[1763141662194,0.01164,96600.0,96582.0,0.04980838]
[1763141662396,0.10479654,96589.0,96588.0,0.04980838]
[1763141662601,0.17219654,96589.0,96588.0,0.04980838]
[1763141663058,0.0233,96598.0,96580.0,0.61344044]
[1763141663256,0.0233,96598.0,96588.0,0.04980838]
[1763141663257,0.10479654,96589.0,96588.0,0.04980838]
[1763141663458,0.17219654,96589.0,96588.0,0.04980838]
[1763141664149,0.18818654,96589.0,96588.0,0.04980838]
[1763141665819,0.08339,96589.0,96588.0,0.04980838]
[1763141667405,0.08339,96589.0,96583.0,0.04980838]
[1763141667651,0.10479654,96586.0,96583.0,0.04980838]
[1763141667875,0.02763,96584.0,96583.0,0.04980838]
[1763141669890,0.02763,96584.0,96570.0,0.61344044]
[1763141670053,0.0233,96583.0,96579.0,0.04980838]
[1763141670231,0.0674,96582.0,96579.0,0.04980838]
[1763141670444,0.01599,96580.0,96579.0,0.04980838]
[1763141671784,0.01599,96580.0,96570.0,0.61444044]
[1763141671785,0.01599,96580.0,96570.0,0.001]
[1763141671924,0.17219654,96582.0,96570.0,0.001]
[1763141671925,0.02741,96571.0,96570.0,0.001]
[1763141672122,0.09481,96571.0,96570.0,0.04980838]
[1763141672344,0.02741,96571.0,96570.0,0.04980838]
[1763141672558,0.09481,96571.0,96570.0,0.04980838]
[1763141672774,0.09481,96571.0,96569.0,0.04980838]
[1763141673205,0.01597,96570.0,96569.0,0.04980838]
[1763141673438,0.01597,96570.0,96560.0,0.61344044]
[1763141673588,0.10479654,96566.0,96565.0,0.04980838]
[1763141673794,0.12076654,96566.0,96561.0,0.04980838]
[1763141674227,0.01597,96562.0,96561.0,0.04980838]
[1763141674427,0.0674,96562.0,96561.0,0.04980838]
[1763141674849,0.0674,96562.0,96553.0,0.00024239]
[1763141675013,0.02486,96581.0,96570.0,0.04980838]
[1763141675216,0.02486,96581.0,96561.0,0.00956]
[1763141675217,0.02486,96581.0,96579.0,0.04980838]
[1763141675415,0.01144,96586.0,96580.0,0.04980838]
[1763141675641,0.10479654,96581.0,96580.0,0.04980838]
[1763141676006,0.12076654,96581.0,96580.0,0.04980838]
[1763141677540,0.14436642,96581.0,96580.0,0.04980838]
[1763141678991,0.14436642,96581.0,96560.0,0.45096172]
[1763141678992,0.13670667,96581.0,96560.0,0.45096172]
[1763141679165,0.12076654,96581.0,96580.0,0.05]
[1763141679793,0.12076654,96581.0,96560.0,0.61344044]
[1763141680025,0.02486,96580.0,96560.0,0.61344044]
[1763141680177,0.02486,96580.0,96574.0,0.05]
[1763141680617,0.10479654,96581.0,96574.0,0.05]
[1763141680816,0.10479654,96581.0,96560.0,0.61344044]
[1763141680817,0.01144,96586.0,96583.0,0.05]
[1763141681072,0.07904,96584.0,96583.0,0.05]
[1763141681277,0.0674,96584.0,96583.0,0.05]
[1763141681844,0.01597,96584.0,96583.0,0.05]
[1763141682032,0.01597,96584.0,96570.0,0.61344044]
[1763141682033,0.01144,96603.0,96599.0,0.05]
[1763141682160,0.07904,96600.0,96599.0,0.05]
[1763141685094,0.09501,96600.0,96599.0,0.05]
[1763141685913,0.0674,96600.0,96599.0,0.05]
[1763141687351,0.01144,96603.0,96592.0,0.00956]
[1763141687352,0.01144,96603.0,96602.0,0.05]
[1763141687575,0.0674,96603.0,96592.0,0.00956]
[1763141687784,0.10479654,96614.0,96602.0,0.05956]
[1763141687985,0.10479654,96614.0,96613.0,0.05]
[1763141688234,0.2140427,96614.0,96613.0,0.05]
[1763141688433,0.2140427,96614.0,96610.0,0.05]
[1763141688434,0.20951079,96614.0,96610.0,0.05]
[1763141688644,0.04965799,96613.0,96610.0,0.05]
[1763141688845,0.01597,96611.0,96607.0,0.05]
[1763141689046,0.01597,96608.0,96607.0,0.05]
[1763141689196,0.03710274,96608.0,96607.0,0.05]
[1763141689378,0.01597,96608.0,96607.0,0.05]
[1763141690375,0.03506349,96608.0,96607.0,0.05]
[1763141691281,0.01597,96608.0,96607.0,0.05]
[1763141691983,0.02486,96613.0,96607.0,0.05]
[1763141692148,0.01461074,96612.0,96607.0,0.05]
[1763141692351,0.02486,96613.0,96607.0,0.05]
[1763141692552,0.17219654,96614.0,96613.0,0.05]
[1763141692760,0.0674,96614.0,96613.0,0.05]
[1763141692961,0.08337,96614.0,96613.0,0.05]
[1763141696268,0.10924616,96614.0,96592.0,0.00956]
[1763141696470,0.10479654,96612.0,96611.0,0.05]
[1763141696873,0.12076654,96612.0,96611.0,0.05]
[1763141697097,0.01597,96612.0,96611.0,0.05]
[1763141699241,0.03748524,96612.0,96611.0,0.05]
[1763141700157,0.02587643,96613.0,96600.0,0.61344044]
[1763141700385,0.0674,96614.0,96613.0,0.05]
[1763141701082,0.01144,96615.0,96613.0,0.05]
[1763141701289,0.01144,96633.0,96622.0,0.05]
[1763141701458,0.01144,96633.0,96631.0,0.05]
[1763141701669,0.01144,96633.0,96632.0,0.05]
[1763141701872,0.0674,96632.0,96631.0,0.05]
[1763141702456,0.01247,96647.0,96640.0,0.00956]
[1763141702666,0.01247,96647.0,96646.0,0.05]
[1763141702866,0.00540147,96640.0,96618.0,0.00956]
[1763141703066,0.01648,96632.0,96630.0,0.05]
[1763141703266,0.00540147,96640.0,96630.0,0.05]
[1763141703267,0.07987,96631.0,96630.0,0.05]
[1763141703602,0.08388,96631.0,96630.0,0.05]
[1763141705862,0.08388,96631.0,96620.0,0.42902114]
[1763141706125,0.15432842,96630.0,96627.0,0.05]
[1763141706656,0.01648,96628.0,96627.0,0.05]
[1763141707380,0.01648,96628.0,96612.0,0.00956]
[1763141707381,0.01648,96628.0,96623.0,0.05]
[1763141707580,0.10479654,96625.0,96623.0,0.05]
[1763141707783,0.10960737,96624.0,96623.0,0.05]
[1763141708395,0.08388,96624.0,96623.0,0.05]
[1763141710767,0.08388,96624.0,96610.0,0.05]
[1763141710768,0.10975348,96624.0,96610.0,0.05]
[1763141710986,0.13272654,96611.0,96603.0,0.05]
[1763141711215,0.20702004,96609.0,96590.0,0.42902114]
[1763141711433,0.06736,96610.0,96600.0,0.05]
[1763141711434,0.09211,96610.0,96600.0,0.05]
[1763141711649,0.23177016,96609.0,96600.0,0.05]
[1763141711845,0.02793,96601.0,96600.0,0.05]
[1763141711978,0.09529,96601.0,96600.0,0.05]
[1763141713687,0.01211,96601.0,96600.0,0.05]
[1763141713890,0.09529,96601.0,96600.0,0.05]
[1763141714094,0.09529,96601.0,96594.0,0.05]
[1763141714261,0.02793,96601.0,96594.0,0.05]
[1763141714488,0.06736,96600.0,96594.0,0.05]
[1763141716256,0.01582,96595.0,96594.0,0.05]
[1763141716465,0.01582,96595.0,96591.0,0.05]
[1763141716676,0.01582,96595.0,96577.0,0.00956]
[1763141716677,0.01582,96586.0,96585.0,0.05]
[1763141716886,0.08318,96586.0,96585.0,0.05]
[1763141717083,0.09529,96586.0,96585.0,0.05]
[1763141717935,0.07947,96586.0,96585.0,0.05]
[1763141718600,0.06736,96586.0,96585.0,0.05]
[1763141719019,0.01211,96601.0,96599.0,0.05]
[1763141719449,0.08322,96600.0,96599.0,0.05]
[1763141720535,0.02475,96623.0,96610.0,0.05]
[1763141720754,0.0674,96617.0,96616.0,0.05]
[1763141720942,0.08322,96617.0,96616.0,0.05]
[1763141721892,0.01582,96617.0,96616.0,0.05]
[1763141722094,0.08322,96617.0,96616.0,0.05]
[1763141722413,0.08422,96617.0,96616.0,0.05]
[1763141723266,0.08322,96617.0,96613.0,0.05]
[1763141723469,0.10479654,96614.0,96613.0,0.05]
[1763141723674,0.13272654,96614.0,96613.0,0.05]
[1763141724533,0.02793,96614.0,96613.0,0.05]
[1763141724732,0.01211,96614.0,96613.0,0.05]
[1763141724944,0.0684,96617.0,96613.0,0.05]
[1763141725150,0.0674,96617.0,96616.0,0.05]
[1763141725341,0.01122112,96623.0,96617.0,0.05]
[1763141725524,0.07947,96618.0,96617.0,0.05]
[1763141725778,0.09529,96618.0,96617.0,0.05]
[1763141727243,0.01211,96629.0,96617.0,0.05]
[1763141727446,0.01211,96629.0,96600.0,0.56578347]
[1763141727447,0.01211,96629.0,96628.0,0.05]
[1763141727643,0.06736,96629.0,96628.0,0.05]
[1763141727892,0.08318,96629.0,96611.0,0.00956]
[1763141728064,0.10479654,96627.0,96623.0,0.05]
[1763141728246,0.02587295,96626.0,96623.0,0.05]
[1763141728446,0.01582,96624.0,96623.0,0.05]
[1763141728848,0.02587295,96626.0,96623.0,0.05]
[1763141729710,0.01582,96624.0,96623.0,0.05]
[1763141731034,0.01582,96624.0,96622.0,0.05]
[1763141731360,0.04173375,96623.0,96622.0,0.05]
[1763141734669,0.02309,96639.0,96633.0,0.05]
[1763141734889,0.06736,96634.0,96633.0,0.05]
[1763141735253,0.02309,96639.0,96625.0,0.42900118]
[1763141735254,0.0254252,96645.0,96643.0,0.05]
[1763141735474,0.01211,96655.0,96634.0,0.85800236]
[1763141735475,0.06736,96644.0,96634.0,0.85800236]
[1763141735713,0.10479654,96639.0,96611.0,0.00956]
[1763141736038,0.0489584,96643.0,96630.0,0.05]
[1763141736039,0.02586974,96638.0,96630.0,0.05]
[1763141736237,0.06736,96637.0,96630.0,0.05]
[1763141736355,0.02785,96631.0,96630.0,0.05]
[1763141736557,0.02785,96631.0,96626.0,0.05]